bitfinex/quotes_BTCUSD_20240620
["timestamp","ask_amount","ask_price","bid_price","bid_amount"]
[1718893331263,0.1,64887.0,64869.0,0.02]
[1718893331458,0.1,64887.0,64870.0,0.15256112]
[1718893331658,0.1,64887.0,64872.0,0.02]
[1718893331950,0.21514344,64887.0,64872.0,0.15256112]
[1718893332155,0.21514344,64887.0,64864.0,0.0006]
[1718893332359,0.21514344,64887.0,64880.0,0.003]
[1718893332565,0.07628172,64887.0,64880.0,0.003]
[1718893332931,0.07628172,64887.0,64880.0,0.006]
[1718893333827,0.07628172,64887.0,64880.0,0.003]
[1718893334033,0.07628172,64887.0,64880.0,0.15556112]
[1718893334234,0.07628172,64887.0,64881.0,0.15256112]
[1718893334466,0.1,64892.0,64881.0,0.15256112]
[1718893334669,0.01434569,64891.0,64880.0,0.003]
[1718893335136,0.003,64887.0,64858.0,0.02]
[1718893335345,2.19858169,64886.0,64867.0,0.45769034]
[1718893335524,1.07251877,64885.0,64868.0,0.15256112]
[1718893335725,0.53179969,64884.0,64869.0,0.000946]
[1718893335931,0.11434569,64883.0,64869.0,0.000946]
[1718893336075,0.01434569,64882.0,64876.0,0.07628172]
[1718893336277,0.01434569,64882.0,64880.0,0.001]
[1718893336683,0.01434569,64882.0,64877.0,0.15256112]
[1718893337102,0.01434569,64881.0,64877.0,0.15256112]
[1718893337304,0.01434569,64880.0,64877.0,0.15256112]
[1718893337510,0.01434569,64879.0,64877.0,0.15256112]
[1718893337708,0.002,64884.0,64877.0,0.15256112]
[1718893337709,0.01434569,64878.0,64877.0,0.15256112]
[1718893337911,0.002,64884.0,64877.0,0.15256112]
[1718893338115,0.24661358,64883.0,64870.0,0.07628172]
[1718893338314,0.11716758,64882.0,64871.0,0.15256112]
[1718893338513,0.11716758,64881.0,64871.0,0.15256112]
[1718893338811,0.001,64879.0,64877.0,0.011]
[1718893339088,0.01716758,64878.0,64877.0,0.011]
[1718893339250,0.80104767,64878.0,64871.0,0.15256112]
[1718893339398,0.002,64884.0,64871.0,0.15256112]
[1718893339399,0.11716758,64877.0,64871.0,0.15256112]
[1718893339624,0.11716758,64877.0,64871.0,0.15556112]
[1718893339625,0.01716758,64876.0,64871.0,0.15556112]
[1718893340564,0.01716758,64876.0,64872.0,0.02]
[1718893340774,0.01716758,64875.0,64873.0,0.15256112]
[1718893340958,0.001,64876.0,64873.0,0.15256112]
[1718893341351,0.2407,64874.0,64871.0,0.015]
[1718893341504,0.01716758,64873.0,64871.0,0.007]
[1718893341704,0.01716758,64872.0,64871.0,0.007]
[1718893341937,0.01716758,64872.0,64869.0,0.000946]
[1718893342139,0.01716758,64871.0,64869.0,0.000946]
[1718893342338,0.01716758,64870.0,64869.0,0.000946]
[1718893343528,0.03707581,64874.0,64869.0,0.000946]
[1718893343734,0.07628172,64892.0,64869.0,0.000946]
[1718893343735,0.3008,64886.0,64870.0,0.22884284]
[1718893343930,0.02086,64903.0,64870.0,0.22884284]
[1718893343931,0.3008,64896.0,64878.0,0.28038172]
[1718893344211,0.505508,64895.0,64885.0,0.07628172]
[1718893344467,0.3008,64896.0,64885.0,0.15256112]
[1718893344977,0.3008,64896.0,64886.0,0.15564307]
[1718893345142,0.05452775,64903.0,64886.0,0.17564307]
[1718893345143,0.32800375,64903.0,64886.0,0.17564307]
[1718893345284,0.32800375,64903.0,64888.0,0.02]
[1718893345497,0.014,64896.0,64889.0,0.15256112]
[1718893345752,0.014,64896.0,64878.0,0.2051]
[1718893345877,0.141735,64895.0,64879.0,0.15256112]
[1718893346081,0.141735,64895.0,64885.0,0.001]
[1718893346423,0.028,64896.0,64885.0,0.15356112]
[1718893346639,0.4308,64895.0,64885.0,0.15256112]
[1718893346879,0.835497,64894.0,64878.0,0.001]
[1718893347056,0.423326,64893.0,64879.0,0.15256112]
[1718893348027,0.1,64892.0,64879.0,0.15256112]
[1718893348231,0.1,64892.0,64885.0,0.001]
[1718893348529,0.1,64893.0,64885.0,0.001]
[1718893349309,0.1,64893.0,64885.0,0.15256112]
[1718893349517,0.1,64893.0,64886.0,0.17563877]
[1718893349693,0.002,64892.0,64886.0,0.15563877]
[1718893350077,0.002,64892.0,64886.0,0.17563877]
[1718893350393,0.1,64899.0,64893.0,0.02]
[1718893350600,0.1,64899.0,64894.0,0.15256112]
[1718893350978,0.02720375,64903.0,64894.0,0.15256112]
[1718893351184,0.02720375,64903.0,64894.0,0.10622024]
[1718893351681,0.00086,64903.0,64894.0,0.10622024]
[1718893352564,0.10086,64903.0,64894.0,0.10622024]
[1718893352784,0.00086,64903.0,64894.0,0.10622024]
[1718893352995,0.00586,64903.0,64894.0,0.10622024]
[1718893353376,0.00586,64903.0,64896.0,0.02]
[1718893353579,0.00586,64903.0,64897.0,0.15256112]
[1718893354787,0.00086,64903.0,64897.0,0.15256112]
[1718893355210,0.00586,64903.0,64897.0,0.15256112]
[1718893355738,0.00486,64903.0,64897.0,0.15256112]
[1718893356155,0.00586,64903.0,64897.0,0.15256112]
[1718893356558,0.00986,64903.0,64897.0,0.15256112]
[1718893357323,0.02064298,64902.0,64897.0,0.15256112]
[1718893357548,0.02064298,64901.0,64897.0,0.15256112]
[1718893357762,0.02064298,64900.0,64897.0,0.15256112]
[1718893357906,0.02064298,64899.0,64897.0,0.15256112]
[1718893358110,0.02064298,64898.0,64897.0,0.15256112]
[1718893359622,0.02064298,64898.0,64897.0,0.15456112]
[1718893360647,0.02064298,64898.0,64897.0,0.17456112]
[1718893360888,0.02064298,64898.0,64897.0,0.15456112]
[1718893363641,0.02064298,64898.0,64897.0,0.40176112]
[1718893363855,0.02064298,64898.0,64897.0,0.42176112]
[1718893364657,0.02064298,64898.0,64897.0,0.42170054]
[1718893365254,0.02064298,64898.0,64897.0,0.41970054]
[1718893365477,0.02164298,64898.0,64897.0,0.41370054]
[1718893365754,0.02164298,64898.0,64897.0,0.18650054]
[1718893365960,0.02164298,64898.0,64897.0,0.20050054]
[1718893366128,0.02064298,64898.0,64897.0,0.18650054]
[1718893366355,0.02064298,64898.0,64897.0,0.20050054]
[1718893366356,0.02164298,64898.0,64897.0,0.20050054]
[1718893366711,0.12164298,64898.0,64897.0,0.20050054]
[1718893366893,0.12064298,64898.0,64897.0,0.17250054]
[1718893367123,0.12064298,64898.0,64897.0,0.18650054]
[1718893367331,0.12164298,64898.0,64897.0,0.20050054]
[1718893367747,0.12164298,64898.0,64897.0,0.30250054]
[1718893368371,0.123453,64898.0,64897.0,0.30250054]
[1718893368819,0.123453,64898.0,64897.0,0.28850054]
[1718893369232,0.123453,64898.0,64897.0,0.30250054]
[1718893369595,0.3471057,64898.0,64897.0,0.30250054]
[1718893369972,0.34910623,64898.0,64897.0,0.20050054]
[1718893370168,0.1254238,64898.0,64897.0,0.20050054]
[1718893370410,0.34910623,64898.0,64897.0,0.20050054]
[1718893370616,0.34910623,64898.0,64897.0,0.18050054]
[1718893370825,0.34910623,64898.0,64897.0,0.20050054]
[1718893371024,0.34910623,64898.0,64897.0,0.18050054]
[1718893371246,0.34910623,64898.0,64897.0,0.20050054]
[1718893371828,0.34910623,64898.0,64897.0,0.30250054]
[1718893372003,0.1254238,64898.0,64897.0,0.58940054]
[1718893372227,0.18469664,64898.0,64897.0,0.58940054]
[1718893372467,0.18469664,64898.0,64897.0,0.48740054]
[1718893373199,0.0254238,64898.0,64897.0,0.48740054]
[1718893373403,0.001,64898.0,64897.0,0.48740054]
[1718893373607,0.02369114,64898.0,64897.0,0.63940054]
[1718893373806,0.02369114,64898.0,64897.0,0.53740054]
[1718893374820,0.02492933,64907.0,64897.0,0.53740054]
[1718893374821,0.00862,64931.0,64922.0,0.05]
[1718893375021,0.00862,64931.0,64912.0,0.259]
[1718893375378,0.00862,64931.0,64899.0,0.55]
[1718893375379,0.00862,64931.0,64898.0,0.259]
[1718893375571,0.00862,64931.0,64897.0,0.16650054]
[1718893375572,0.15339277,64927.0,64897.0,0.16650054]
[1718893375786,0.15339277,64924.0,64900.0,0.45769034]
[1718893375991,0.15339277,64922.0,64900.0,0.45769034]
[1718893376193,0.05260222,64921.0,64901.0,0.15256112]
[1718893376633,0.05260222,64921.0,64902.0,0.02]
[1718893376830,0.29760386,64928.0,64908.0,0.02]
[1718893377034,0.05177164,64927.0,64908.0,0.02]
[1718893377240,0.05177164,64927.0,64907.0,0.07628172]
[1718893377241,0.1,64927.0,64914.0,0.07628172]
[1718893377448,0.1,64927.0,64909.0,0.17256112]
[1718893377649,0.1,64927.0,64911.0,0.02]
[1718893377862,0.001,64921.0,64911.0,0.15256112]
[1718893378210,0.1,64925.0,64911.0,0.15256112]
[1718893378468,0.169322,64925.0,64914.0,0.001]
[1718893379095,0.1,64925.0,64914.0,0.001]
[1718893379415,0.1,64925.0,64915.0,0.07628172]
[1718893379883,0.15153435,64925.0,64914.0,0.001]
[1718893380036,0.45737539,64924.0,64894.0,0.020946]
[1718893380237,0.3295,64917.0,64894.0,0.000946]
[1718893380436,1.735993,64916.0,64894.0,0.000946]
[1718893380788,0.05,64920.0,64894.0,0.000946]
[1718893380789,0.5758,64914.0,64894.0,0.000946]
[1718893380939,0.25102,64913.0,64894.0,0.000946]
[1718893381174,0.48093334,64912.0,64894.0,0.000946]
[1718893381377,0.331476,64911.0,64894.0,0.001946]
[1718893381584,0.05361103,64910.0,64894.0,0.001946]
[1718893381782,0.3495358,64909.0,64894.0,0.001946]
[1718893381994,0.3192,64907.0,64894.0,0.001946]
[1718893382225,0.3192,64901.0,64875.0,0.07628172]
[1718893382390,0.3192,64901.0,64885.0,0.45769034]
[1718893382593,0.849644,64900.0,64875.0,0.07628172]
[1718893382796,0.299329,64899.0,64875.0,0.09628172]
[1718893382996,0.391353,64898.0,64875.0,0.07628172]
[1718893383219,0.76801669,64897.0,64876.0,0.15256112]
[1718893383392,0.647861,64896.0,64876.0,0.15256112]
[1718893383591,0.3168,64894.0,64876.0,0.15256112]
[1718893383818,0.15568883,64893.0,64869.0,0.020946]
[1718893384137,0.2445,64892.0,64875.0,0.001]
[1718893384340,0.671234,64891.0,64875.0,0.001]
[1718893384540,0.671234,64891.0,64870.0,0.15256112]
[1718893384541,0.398955,64890.0,64870.0,0.15256112]
[1718893384791,0.11057076,64889.0,64870.0,0.15256112]
[1718893384973,0.01057076,64888.0,64870.0,0.17256112]
[1718893385180,0.01057076,64888.0,64870.0,0.15256112]
[1718893385356,0.01057076,64888.0,64869.0,0.000946]
[1718893385357,0.37020146,64887.0,64869.0,0.000946]
[1718893385517,0.11057076,64886.0,64869.0,0.000946]
[1718893385724,0.01057076,64885.0,64869.0,0.000946]
[1718893385921,0.01057076,64885.0,64877.0,0.07628172]
[1718893386134,0.01057076,64885.0,64878.0,0.00307768]
[1718893386340,0.01057076,64885.0,64884.0,0.07628172]
[1718893386541,0.01057076,64885.0,64884.0,0.22884284]
[1718893386747,0.01057076,64885.0,64884.0,0.15256112]
[1718893386949,0.01057076,64885.0,64877.0,0.07628172]
[1718893386950,0.01057076,64891.0,64877.0,0.07628172]
[1718893387182,0.01057076,64890.0,64878.0,0.15256112]
[1718893387395,0.3163,64888.0,64875.0,0.002]
[1718893387599,0.242,64886.0,64875.0,0.002]
[1718893387795,0.11057076,64885.0,64869.0,0.70833634]
[1718893388033,0.01057076,64884.0,64871.0,0.15256112]
[1718893388191,0.01057076,64884.0,64877.0,0.002]
[1718893389465,0.03753469,64883.0,64877.0,0.002]
[1718893389627,0.01057076,64882.0,64869.0,0.001946]
[1718893389874,0.775342,64881.0,64869.0,0.001946]
[1718893390058,0.11057076,64880.0,64869.0,0.000946]
[1718893390236,0.01057076,64879.0,64869.0,0.000946]
[1718893390441,0.01057076,64878.0,64869.0,0.000946]
[1718893390635,0.01057076,64877.0,64869.0,0.000946]
[1718893390842,0.01057076,64876.0,64869.0,0.000946]
[1718893391133,0.01057076,64875.0,64869.0,0.000946]
[1718893391564,0.1,64885.0,64860.0,0.06954772]
[1718893391565,0.01057076,64874.0,64860.0,0.06954772]
[1718893391930,0.01057076,64873.0,64861.0,0.15256112]
[1718893392082,0.06583,64884.0,64861.0,0.15256112]
[1718893392083,0.01057076,64872.0,64861.0,0.15256112]
[1718893392287,0.01057076,64872.0,64858.0,0.2527]
[1718893392288,0.31177076,64871.0,64858.0,0.2527]
[1718893392495,0.65843876,64870.0,64848.0,0.45769034]
[1718893392703,0.73093076,64869.0,64848.0,0.45769034]
[1718893392912,0.11057076,64868.0,64848.0,0.45769034]
[1718893393111,0.01057076,64867.0,64851.0,0.07628172]
[1718893393371,0.1,64868.0,64851.0,0.07628172]
[1718893393372,0.01057076,64866.0,64852.0,0.15256112]
[1718893393560,0.01057076,64865.0,64852.0,0.15256112]
[1718893393763,0.01057076,64864.0,64852.0,0.15256112]
[1718893393973,0.01057076,64863.0,64852.0,0.15256112]
[1718893394101,0.01057076,64862.0,64852.0,0.15256112]
[1718893394283,0.3019,64861.0,64848.0,0.016]
[1718893394484,0.11057076,64860.0,64849.0,0.15256112]
[1718893394694,0.11057076,64860.0,64852.0,0.013]
[1718893394695,0.01057076,64859.0,64852.0,0.013]
[1718893394940,0.01057076,64858.0,64852.0,0.013]
[1718893395145,0.00944038,64857.0,64852.0,0.013]
[1718893395297,0.1,64860.0,64852.0,0.013]
[1718893395298,0.00944038,64856.0,64852.0,0.013]
[1718893395498,0.00944038,64855.0,64853.0,0.22884284]
[1718893395707,0.00944038,64854.0,64853.0,0.24884284]
[1718893395907,0.00944038,64854.0,64853.0,0.22884284]
[1718893396132,0.00944038,64864.0,64853.0,0.24884284]
[1718893396351,0.001,64866.0,64853.0,0.24884284]
[1718893396352,0.001,64866.0,64863.0,0.07628172]
[1718893396577,0.00944149,64865.0,64863.0,0.09628172]
[1718893396775,0.00944149,64865.0,64864.0,0.15256112]
[1718893396983,0.00944149,64865.0,64864.0,0.47206112]
[1718893397337,0.001,64866.0,64865.0,0.02]
[1718893397581,0.003,64866.0,64865.0,0.17256112]
[1718893397791,0.002,64866.0,64865.0,0.80246112]
[1718893398139,0.3219,64894.0,64881.0,0.2424]
[1718893398336,0.00944528,64893.0,64882.0,0.15256112]
[1718893398541,0.05875453,64892.0,64882.0,0.15256112]
[1718893398738,0.03362885,64891.0,64882.0,0.15256112]
[1718893398964,0.00944528,64890.0,64874.0,0.251]
[1718893399170,0.00944528,64890.0,64877.0,0.07628172]
[1718893399394,0.32034991,64889.0,64879.0,0.02]
[1718893399629,0.32979519,64888.0,64880.0,0.15256112]
[1718893399834,0.32979519,64887.0,64880.0,0.15256112]
[1718893400071,0.32979519,64886.0,64880.0,0.15256112]
[1718893400280,0.48052486,64905.0,64880.0,0.15256112]
[1718893400281,0.32978897,64885.0,64883.0,0.02]
[1718893400494,0.2605,64902.0,64884.0,0.15256112]
[1718893400645,0.42977539,64901.0,64884.0,0.15256112]
[1718893400849,0.32977539,64900.0,64885.0,0.02]
[1718893401059,0.42977539,64899.0,64886.0,0.15256112]
[1718893401267,0.32033168,64898.0,64886.0,0.15256112]
[1718893401443,0.42977539,64897.0,64886.0,0.15256112]
[1718893401640,0.32977539,64896.0,64886.0,0.15256112]
[1718893401869,0.1,64897.0,64886.0,0.15256112]
[1718893401870,0.42977539,64895.0,64886.0,0.15256112]
[1718893402209,0.32977539,64894.0,64886.0,0.15256112]
[1718893402342,0.42977539,64893.0,64886.0,0.15256112]
[1718893402528,0.32977539,64892.0,64886.0,0.15256112]
[1718893402722,0.42977539,64891.0,64886.0,0.15356112]
[1718893402930,0.1,64893.0,64887.0,0.09628172]
[1718893402931,0.42977539,64890.0,64887.0,0.09628172]
[1718893403170,0.1,64893.0,64887.0,0.09628172]
[1718893403171,0.2637,64907.0,64891.0,0.02]
[1718893403367,0.2637,64907.0,64889.0,0.2548]
[1718893403368,0.32974071,64906.0,64892.0,0.15256112]
[1718893403569,0.3202,64909.0,64892.0,0.15256112]
[1718893403570,0.32974071,64905.0,64892.0,0.15256112]
[1718893403838,0.32974071,64904.0,64892.0,0.15256112]
[1718893404001,0.32974071,64903.0,64893.0,0.01498304]
[1718893404253,0.32029665,64902.0,64894.0,0.15256112]
[1718893404408,0.00086,64898.0,64894.0,0.15256112]
[1718893404609,0.32974071,64897.0,64894.0,0.15256112]
[1718893404985,0.42974071,64896.0,64894.0,0.17256112]
[1718893405193,0.32029665,64895.0,64894.0,0.17256112]
[1718893405386,0.42029665,64895.0,64894.0,0.15256112]
[1718893405609,0.42995928,64895.0,64894.0,0.15256112]
[1718893406427,0.42995928,64895.0,64894.0,0.16456112]
[1718893406854,0.42995928,64895.0,64894.0,0.15256112]
[1718893407415,0.42995928,64895.0,64894.0,0.17256112]
[1718893407631,0.42995928,64895.0,64894.0,0.18456112]
[1718893408273,0.42995928,64895.0,64894.0,0.74126112]
[1718893408468,0.32029665,64895.0,64894.0,0.75526112]
[1718893408642,0.00086,64898.0,64897.0,0.02]
[1718893408842,0.32111562,64898.0,64897.0,0.15256112]
[1718893409212,0.33417996,64898.0,64897.0,0.15256112]
[1718893409542,0.33418631,64898.0,64897.0,0.15256112]
[1718893409745,0.12004371,64922.0,64903.0,0.2957]
[1718893409746,0.48040362,64922.0,64903.0,0.2957]
[1718893409948,0.00862,64931.0,64924.0,0.02]
[1718893410186,0.00862,64931.0,64927.0,0.02]
[1718893410386,0.00862,64931.0,64927.0,0.28757965]
[1718893410569,0.00862,64931.0,64927.0,0.2055]
[1718893410797,0.00862,64931.0,64927.0,0.3075]
[1718893411904,0.00862,64931.0,64927.0,0.2055]
[1718893412120,0.00862,64931.0,64927.0,0.02]
[1718893412329,0.00862,64931.0,64927.0,0.034]
[1718893412600,0.00862,64931.0,64927.0,0.2985]
[1718893412778,0.00862,64931.0,64927.0,0.3075]
[1718893413593,0.00862,64931.0,64927.0,0.7078]
[1718893413763,0.00862,64931.0,64927.0,0.86036112]
[1718893414546,0.00862,64931.0,64927.0,0.91160263]
[1718893414790,0.00862,64931.0,64930.0,0.3845]
[1718893415026,0.00863,64954.0,64934.0,0.3845]
[1718893415279,0.00863,64954.0,64953.0,0.3345]
[1718893415497,0.00863,64954.0,64953.0,0.53706112]
[1718893415707,0.00861,64961.0,64960.0,0.6772]
[1718893415902,0.00861,64961.0,64960.0,0.85276112]
[1718893416529,0.04334388,64977.0,64960.0,0.85276112]
[1718893416530,0.00863,64976.0,64975.0,0.3749]
[1718893416868,0.00863,64976.0,64975.0,0.57746112]
[1718893417289,0.00863,64976.0,64975.0,0.76296112]
[1718893417609,0.00863,64976.0,64975.0,0.84626112]
[1718893418377,0.00863,64976.0,64975.0,0.86026112]
[1718893418782,0.00863,64976.0,64975.0,0.16656112]
[1718893418983,0.00863,64976.0,64975.0,0.18056112]
[1718893420594,0.00863,64976.0,64975.0,0.20056112]
[1718893420798,0.00863,64976.0,64975.0,0.18656112]
[1718893421175,0.00863,64976.0,64975.0,0.55106112]
[1718893421364,0.00863,64976.0,64975.0,0.57406112]
[1718893421565,0.00863,64976.0,64975.0,0.56006112]
[1718893421802,0.00863,64976.0,64975.0,0.45806112]
[1718893422048,0.00863,64976.0,64975.0,0.58106112]
[1718893422445,0.00863,64976.0,64975.0,0.86426112]
[1718893422665,0.00863,64976.0,64975.0,0.85326112]
[1718893422959,0.75863,64976.0,64975.0,0.86726112]
[1718893423354,0.75863,64976.0,64975.0,0.85326112]
[1718893424261,0.75863,64976.0,64975.0,0.86726112]
[1718893424465,0.75863,64976.0,64975.0,0.85326112]
[1718893424673,0.75011335,64976.0,64975.0,0.85326112]
[1718893424884,0.75011335,64976.0,64975.0,0.90976685]
[1718893425015,0.75011335,64976.0,64975.0,0.92376685]
[1718893426568,0.75011335,64976.0,64975.0,0.88126112]
[1718893426924,0.75011335,64976.0,64975.0,0.92376685]
[1718893427343,0.75011335,64976.0,64975.0,0.88126112]
[1718893427807,0.75011335,64976.0,64975.0,0.90976685]
[1718893428343,0.75011335,64976.0,64975.0,0.89576685]
[1718893428684,0.75011335,64976.0,64975.0,0.92049766]
[1718893429202,0.75011335,64976.0,64975.0,0.89249766]
[1718893429563,0.75011335,64976.0,64975.0,0.92049766]
[1718893429794,0.75011335,64976.0,64975.0,0.88126112]
[1718893429947,0.75011335,64976.0,64975.0,0.86726112]
[1718893430148,0.75011335,64976.0,64975.0,0.90649766]
[1718893430373,0.45769034,65025.0,65007.0,0.02]
[1718893430609,0.45769034,65008.0,65007.0,0.02]
[1718893430807,0.02,65038.0,65003.0,0.1625]
[1718893430808,0.2429,65028.0,65006.0,0.02]
[1718893431013,0.3323,65026.0,65007.0,0.02]
[1718893431418,0.3173,65026.0,65007.0,0.02]
[1718893431627,0.2482,65037.0,65017.0,0.07628172]
[1718893431879,0.13374059,65036.0,65021.0,0.02]
[1718893432083,0.00862,65041.0,65020.0,0.2125]
[1718893432084,0.00862,65041.0,65024.0,0.02]
[1718893432315,0.14826371,65040.0,65028.0,0.1625]
[1718893432516,0.00862,65041.0,65030.0,0.1625]
[1718893432734,0.00862,65041.0,65022.0,0.123]
[1718893432735,0.00862,65041.0,65031.0,0.15256112]
[1718893433189,0.16099349,65040.0,65031.0,0.15256112]
[1718893433650,0.07628172,65035.0,65028.0,0.007]
[1718893433906,0.41419349,65034.0,65028.0,0.007]
[1718893434109,0.16099349,65033.0,65028.0,0.007]
[1718893434321,0.26099349,65032.0,65019.0,0.07628172]
[1718893434533,0.3135,65031.0,65015.0,0.05]
[1718893434742,0.1,65030.0,65015.0,0.2125]
[1718893434944,0.1,65030.0,65018.0,0.07628172]
[1718893435090,0.1,65030.0,65019.0,0.15563649]
[1718893435381,0.1,65030.0,65019.0,0.15256112]
[1718893435552,0.1,65030.0,65028.0,0.006]
[1718893435754,0.1,65030.0,65028.0,0.15856112]
[1718893436365,0.1,65030.0,65028.0,0.15256112]
[1718893436569,0.3317,65027.0,65012.0,0.05]
[1718893436771,0.10944619,65026.0,65019.0,0.004]
[1718893437096,0.20039541,65025.0,65019.0,0.004]
[1718893437248,1.10965019,65024.0,65018.0,0.005]
[1718893437423,0.20944619,65023.0,65018.0,0.005]
[1718893437628,0.20944619,65023.0,65005.0,0.15256112]
[1718893437629,0.5788,65021.0,65005.0,0.15256112]
[1718893437839,0.20944619,65020.0,65005.0,0.61025146]
[1718893438054,0.10944619,65019.0,65005.0,0.15256112]
[1718893438285,0.5788,65017.0,65005.0,0.15256112]
[1718893438525,0.3323,65011.0,64991.0,0.05]
[1718893438742,0.10944619,65010.0,64997.0,0.45769034]
[1718893438919,0.20944619,65009.0,64998.0,0.15256112]
[1718893439133,0.10944619,65008.0,64998.0,0.15256112]
[1718893439343,0.1,65009.0,64998.0,0.15256112]
[1718893439344,0.20944619,65007.0,64998.0,0.15256112]
[1718893439597,0.10944619,65006.0,64998.0,0.15256112]
[1718893439794,0.20944619,65005.0,64998.0,0.15256112]
[1718893439998,0.20944619,65004.0,64998.0,0.15256112]
[1718893440170,0.10944619,65003.0,64998.0,0.15256112]
[1718893440390,0.10944619,65002.0,64998.0,0.15256112]
[1718893440595,0.10944619,65001.0,64998.0,0.15256112]
[1718893440795,0.10944619,65000.0,64998.0,0.16956112]
[1718893440948,0.10944619,64999.0,64998.0,0.16156112]
[1718893441536,0.1092611,64999.0,64998.0,0.16156112]
[1718893441737,0.1334019,64999.0,64990.0,0.05]
[1718893441991,0.5523,64998.0,64991.0,0.15256112]
[1718893442338,0.2430349,64998.0,64991.0,0.15256112]
[1718893442565,0.2430349,64998.0,64995.0,0.07628172]
[1718893442992,0.2430349,64998.0,64988.0,0.07628172]
[1718893442993,0.02671757,64997.0,64984.0,0.061675]
[1718893443200,0.0241408,64999.0,64984.0,0.061675]
[1718893443535,0.0241408,64999.0,64969.0,0.45769034]
[1718893443536,0.02,64971.0,64939.0,0.01849829]
[1718893443775,0.05,64975.0,64935.0,0.0151]
[1718893443776,0.02,64966.0,64935.0,0.0151]
[1718893443951,0.02,64962.0,64934.0,0.05]
[1718893444173,0.00946026,64961.0,64934.0,0.05]
[1718893444397,0.00946026,64961.0,64941.0,0.03094]
[1718893444610,0.1,64964.0,64941.0,0.03094]
[1718893444808,0.1358,64963.0,64941.0,0.03094]
[1718893445013,0.1,64964.0,64941.0,0.03094]
[1718893445224,0.11977195,64964.0,64948.0,0.02346]
[1718893445453,0.5644,64963.0,64948.0,0.02346]
[1718893445945,0.1,64962.0,64948.0,0.02346]
[1718893446363,0.1,64962.0,64948.0,0.03746]
[1718893446875,0.1,64962.0,64948.0,0.00946]
[1718893447294,0.19567,64961.0,64948.0,0.02346]
[1718893447500,0.1,64960.0,64948.0,0.03746]
[1718893447710,0.546738,64959.0,64948.0,0.03746]
[1718893447938,0.1,64958.0,64948.0,0.02346]
[1718893448142,0.1,64958.0,64948.0,0.03746]
[1718893448547,0.1,64958.0,64948.0,0.02346]
[1718893448751,0.1,64958.0,64948.0,0.00946]
[1718893448956,0.1,64962.0,64948.0,0.00946]
[1718893449159,0.90431,64962.0,64948.0,0.00946]
[1718893449338,0.931172,64961.0,64948.0,0.00946]
[1718893449675,0.270643,64960.0,64948.0,0.00946]
[1718893449804,0.380719,64959.0,64948.0,0.00946]
[1718893450134,0.1,64958.0,64948.0,0.02346]
[1718893450338,0.1,64958.0,64948.0,0.03746]
[1718893450546,0.1,64958.0,64948.0,0.02346]
[1718893450773,0.1,64958.0,64949.0,0.07628172]
[1718893450978,0.0101,64957.0,64948.0,0.03746]
[1718893451176,0.1,64962.0,64950.0,0.07628172]
[1718893451337,0.14274202,64962.0,64950.0,0.07628172]
[1718893451546,0.14274202,64962.0,64948.0,0.02346]
[1718893451547,0.001,64958.0,64948.0,0.02346]
[1718893451798,0.15356112,64958.0,64948.0,0.02346]
[1718893451969,0.13963031,64957.0,64948.0,0.00946]
[1718893452191,0.1,64957.0,64948.0,0.02346]
[1718893452396,0.1,64957.0,64950.0,0.014]
[1718893452998,0.001,64962.0,64950.0,0.014]
[1718893452999,0.101,64962.0,64950.0,0.014]
[1718893453606,0.16951115,64962.0,64950.0,0.014]
[1718893453766,0.16183115,64962.0,64950.0,0.014]
[1718893454170,0.16183115,64962.0,64949.0,0.07628172]
[1718893454171,0.09332,64962.0,64949.0,0.07628172]
[1718893454594,0.001,64957.0,64949.0,0.07628172]
[1718893455029,0.09332,64962.0,64949.0,0.07628172]
[1718893455399,0.09432,64962.0,64950.0,0.028]
[1718893455829,0.09432,64962.0,64950.0,0.014]
[1718893455981,0.09332,64962.0,64949.0,0.07628172]
[1718893456782,0.09332,64962.0,64958.0,0.07628172]
[1718893457743,0.09432,64962.0,64958.0,0.07628172]
[1718893458180,0.09332,64962.0,64958.0,0.07628172]
[1718893458585,0.09332,64962.0,64958.0,0.09028172]
[1718893458586,0.09432,64962.0,64958.0,0.09028172]
[1718893458989,0.09432,64962.0,64958.0,0.10428172]
[1718893461587,0.06348995,64961.0,64958.0,0.10428172]
[1718893462401,0.06348995,64961.0,64958.0,0.09028172]
[1718893462778,0.06348995,64960.0,64958.0,0.09028172]
[1718893463005,0.06348995,64959.0,64958.0,0.07628172]
[1718893463348,0.06348995,64959.0,64958.0,0.09028172]
[1718893463867,0.06348995,64967.0,64958.0,0.09028172]
[1718893464073,0.001,64961.0,64958.0,0.10428172]
[1718893464298,0.06348995,64960.0,64958.0,0.10428172]
[1718893464527,0.06348995,64959.0,64958.0,0.09028172]
[1718893464738,0.1,64968.0,64958.0,0.09028172]
[1718893464739,0.06348995,64967.0,64958.0,0.09028172]
[1718893464941,0.001,64959.0,64958.0,0.028]
[1718893465093,0.001,64959.0,64958.0,0.014]
[1718893465498,0.001,64959.0,64958.0,0.028]
[1718893465698,0.06348995,64959.0,64958.0,0.014]
[1718893466140,0.06348995,64959.0,64958.0,0.028]
[1718893466745,0.36578995,64959.0,64958.0,0.028]
[1718893466905,0.50236894,64959.0,64958.0,0.028]
[1718893467107,0.46578995,64959.0,64958.0,0.028]
[1718893467528,0.46578995,64959.0,64958.0,0.014]
[1718893467731,0.46678995,64959.0,64958.0,0.028]
[1718893467949,0.16448995,64959.0,64958.0,0.028]
[1718893468866,0.16448995,64959.0,64958.0,0.028946]
[1718893469661,0.06448995,64959.0,64958.0,0.028946]
[1718893471352,0.06448995,64959.0,64958.0,0.00478948]
[1718893472068,0.07393858,64959.0,64958.0,0.00478948]
[1718893472510,0.09809697,64959.0,64958.0,0.00478948]
[1718893473526,0.09809697,64959.0,64958.0,4.8e-07]
[1718893473712,0.11803476,64959.0,64958.0,4.8e-07]
[1718893473906,0.37059588,64959.0,64958.0,4.8e-07]
[1718893474161,0.62439588,64959.0,64958.0,4.8e-07]
[1718893474554,0.56090593,64959.0,64958.0,4.8e-07]
[1718893476844,0.61708252,64959.0,64958.0,4.8e-07]
[1718893477242,0.60763389,64959.0,64958.0,4.8e-07]